{"text_format":"1","workbook":"xlsx","n_sheets":1,"sheets":["INVENTARIO DEL EQUIPAMIENTO"],"not_rendered":{"charts":0,"images":0,"macros":0,"external_links":0,"defined_names":5,"comments":0,"pivot_tables":0},"unopened":[],"bounds":{"document_bytes":16777216,"sheet_cells":100000,"rows_first":2000,"rows_last":500,"rows_between":2000,"halvings":0,"cell_chars":16384,"cell_head_chars":4096},"cells_cut":0,"cells_raw":0,"read":"whole","date_system":"1900"}

{"sheet":"INVENTARIO DEL EQUIPAMIENTO","index":0,"n_rows":9,"n_cols":19,"rows_kept":9,"cut":false,"hidden":false,"merged":[[0,6,0,9],[0,10,0,12],[2,1,2,6],[2,7,2,18],[0,1,0,5],[0,13,0,14]]}
[null,"INVENTARIO DEL EQUIPAMIENTO"]
[]
[null,"ESTADO FÍSICO",null,null,null,null,null,"ESTADO FINANCIERO"]
[null,"Número de serie o activo","Descripción del artículo (marca y modelo)","Ubicación","Estado","Proveedor","Años de servicio\nrestantes ","Valor inicial","Pago inicial","Fecha de compra o arrendamiento","Plazo del préstamo\nen años","Interés del préstamo","Pago mensual","Costes operativos mensuales","Coste mensual total","Valor esperado al final del plazo del préstamo","Amortización lineal\nanual","Amortización lineal mensual","Valor actual"]
[null,123,"Marca y modelo","Sucursal principal","Bueno","Local",5,30000,5000,{"$f":"DATE(YEAR(TODAY())-2, 1,1)","v":"2016-01-01"},4,0.1,{"$f":"IFERROR(IF(AND(Datos[[#This Row],[Valor inicial]]>0,Datos[[#This Row],[Valor inicial]]<>Datos[[#This Row],[Pago inicial]]),-1*PMT(Datos[[#This Row],[Interés del préstamo]]/12,Datos[[#This Row],[Plazo del préstamo\nen años]]*12,Datos[[#This Row],[Valor inicial]]-Datos[[#This Row],[Pago inicial]]),0),0)","v":634.06458586867973},200,{"$f":"IFERROR(Datos[[#This Row],[Costes operativos mensuales]]+Datos[[#This Row],[Pago mensual]],\"\")","v":834.06458586867973},20000,{"$f":"IFERROR(IF(Datos[[#This Row],[Valor inicial]]>0,SLN(Datos[[#This Row],[Valor inicial]],Datos[[#This Row],[Valor esperado al final del plazo del préstamo]],Datos[[#This Row],[Años de servicio\nrestantes ]]),0),0)","v":2000},{"$f":"IFERROR(Datos[[#This Row],[Amortización lineal\nanual]]/12,0)","v":166.66666666666666},{"$f":"IFERROR(Datos[[#This Row],[Valor inicial]]-(Datos[[#This Row],[Amortización lineal\nanual]]*((TODAY()-Datos[[#This Row],[Fecha de compra o arrendamiento]])/365)),0)","v":25013.698630136987}]
[null,456,"Marca y modelo","Sucursal principal","Excelente","Local",3,5000,5000,{"$f":"DATE(YEAR(TODAY())-1, 1,1)","v":"2017-01-01"},null,null,{"$f":"IFERROR(IF(AND(Datos[[#This Row],[Valor inicial]]>0,Datos[[#This Row],[Valor inicial]]<>Datos[[#This Row],[Pago inicial]]),-1*PMT(Datos[[#This Row],[Interés del préstamo]]/12,Datos[[#This Row],[Plazo del préstamo\nen años]]*12,Datos[[#This Row],[Valor inicial]]-Datos[[#This Row],[Pago inicial]]),0),0)","v":0},20,{"$f":"IFERROR(Datos[[#This Row],[Costes operativos mensuales]]+Datos[[#This Row],[Pago mensual]],\"\")","v":20},null,{"$f":"IFERROR(IF(Datos[[#This Row],[Valor inicial]]>0,SLN(Datos[[#This Row],[Valor inicial]],Datos[[#This Row],[Valor esperado al final del plazo del préstamo]],Datos[[#This Row],[Años de servicio\nrestantes ]]),0),0)","v":1666.6666666666667},{"$f":"IFERROR(Datos[[#This Row],[Amortización lineal\nanual]]/12,0)","v":138.88888888888889},{"$f":"IFERROR(Datos[[#This Row],[Valor inicial]]-(Datos[[#This Row],[Amortización lineal\nanual]]*((TODAY()-Datos[[#This Row],[Fecha de compra o arrendamiento]])/365)),0)","v":2515.9817351598172}]
[null,789,"Marca y modelo","Costa este","Justo","Local",6,50000,20000,{"$f":"TODAY()","v":"2018-06-29"},5,0.05,{"$f":"IFERROR(IF(AND(Datos[[#This Row],[Valor inicial]]>0,Datos[[#This Row],[Valor inicial]]<>Datos[[#This Row],[Pago inicial]]),-1*PMT(Datos[[#This Row],[Interés del préstamo]]/12,Datos[[#This Row],[Plazo del préstamo\nen años]]*12,Datos[[#This Row],[Valor inicial]]-Datos[[#This Row],[Pago inicial]]),0),0)","v":566.13700932032805},40,{"$f":"IFERROR(Datos[[#This Row],[Costes operativos mensuales]]+Datos[[#This Row],[Pago mensual]],\"\")","v":606.13700932032805},1500,{"$f":"IFERROR(IF(Datos[[#This Row],[Valor inicial]]>0,SLN(Datos[[#This Row],[Valor inicial]],Datos[[#This Row],[Valor esperado al final del plazo del préstamo]],Datos[[#This Row],[Años de servicio\nrestantes ]]),0),0)","v":8083.333333333333},{"$f":"IFERROR(Datos[[#This Row],[Amortización lineal\nanual]]/12,0)","v":673.61111111111109},{"$f":"IFERROR(Datos[[#This Row],[Valor inicial]]-(Datos[[#This Row],[Amortización lineal\nanual]]*((TODAY()-Datos[[#This Row],[Fecha de compra o arrendamiento]])/365)),0)","v":50000}]
[null,null,null,null,null,null,null,null,null,null,null,null,{"$f":"IFERROR(IF(AND(Datos[[#This Row],[Valor inicial]]>0,Datos[[#This Row],[Valor inicial]]<>Datos[[#This Row],[Pago inicial]]),-1*PMT(Datos[[#This Row],[Interés del préstamo]]/12,Datos[[#This Row],[Plazo del préstamo\nen años]]*12,Datos[[#This Row],[Valor inicial]]-Datos[[#This Row],[Pago inicial]]),0),0)","v":0},null,{"$f":"IFERROR(Datos[[#This Row],[Costes operativos mensuales]]+Datos[[#This Row],[Pago mensual]],\"\")","v":0},null,{"$f":"IFERROR(IF(Datos[[#This Row],[Valor inicial]]>0,SLN(Datos[[#This Row],[Valor inicial]],Datos[[#This Row],[Valor esperado al final del plazo del préstamo]],Datos[[#This Row],[Años de servicio\nrestantes ]]),0),0)","v":0},{"$f":"IFERROR(Datos[[#This Row],[Amortización lineal\nanual]]/12,0)","v":0},{"$f":"IFERROR(Datos[[#This Row],[Valor inicial]]-(Datos[[#This Row],[Amortización lineal\nanual]]*((TODAY()-Datos[[#This Row],[Fecha de compra o arrendamiento]])/365)),0)","v":0}]
[null,null,null,null,null,null,null,null,null,null,null,null,{"$f":"IFERROR(IF(AND(Datos[[#This Row],[Valor inicial]]>0,Datos[[#This Row],[Valor inicial]]<>Datos[[#This Row],[Pago inicial]]),-1*PMT(Datos[[#This Row],[Interés del préstamo]]/12,Datos[[#This Row],[Plazo del préstamo\nen años]]*12,Datos[[#This Row],[Valor inicial]]-Datos[[#This Row],[Pago inicial]]),0),0)","v":0},null,{"$f":"IFERROR(Datos[[#This Row],[Costes operativos mensuales]]+Datos[[#This Row],[Pago mensual]],\"\")","v":0},null,{"$f":"IFERROR(IF(Datos[[#This Row],[Valor inicial]]>0,SLN(Datos[[#This Row],[Valor inicial]],Datos[[#This Row],[Valor esperado al final del plazo del préstamo]],Datos[[#This Row],[Años de servicio\nrestantes ]]),0),0)","v":0},{"$f":"IFERROR(Datos[[#This Row],[Amortización lineal\nanual]]/12,0)","v":0},{"$f":"IFERROR(Datos[[#This Row],[Valor inicial]]-(Datos[[#This Row],[Amortización lineal\nanual]]*((TODAY()-Datos[[#This Row],[Fecha de compra o arrendamiento]])/365)),0)","v":0}]